Workbook

Sheet Détails ventes
A1: TABLEAU DE BORD VO COMPLET
B4: =TODAY() -> 2016-03-02
A6: VEHICULE | N6: €
A7: N° VO | B7: IMMAT' | C7: 1ère MEC | D7: Age VO (nombre année-mois) | E7: MARQUE | F7: MODELE | G7: FINITION | H7: MOTEUR | I7: CAROSSERIE | J7: ENERGIE | K7: BOITE | L7: KM | M7: COULEUR | N7: PRIX D'ACHAT | O7: PRIX AFFICHE | P7: PRIX FACTURE | Q7: REMISE | R7: FRE (en HT) | S7: FRE ESTIME (en €TTC) | T7: DIFFERENCE FRE (en HT) | U7: MARGE BRUTE | V7: VENDEUR | W7: REPRENEUR | X7: PROVENANCE VEHICULE | Y7: Date d'entrée en stock | Z7: Date de Facturation | AA7: Nombre de jours de stock | AB7: Financement | AC7: Montant Financé | AD7: PRESTA
A8: 7050 | B8: 3835XT35 | C8: 2013-07-14 | D8: =IF(C8="","",TODAY()-C8) -> 1902-08-19 | E8: Peugeot | F8: 407 | G8: Féline | I8: Break | J8: Diesel | K8: Automatique | L8: 74514 | M8: Gris | N8: 12990 | O8: 15490 | P8: 14990 | Q8: =O8-P8 -> 500 | R8: 1042 | S8: 1000 | T8: =(S8/1.2)-R8 -> -208.6666667 | U8: =((P8-N8)/1.2)-R8 -> 624.6666667 | V8: Guillaume | W8: Joseph | X8: Reprise | Y8: 2016-01-12 | Z8: 2016-02-29 | AA8: =Z8-Y8 -> 48 | AB8: Premium | AC8: 3500 | AD8: EGVO
B9: AX-522-CG | C9: 2009-06-26 | D9: =IF(C9="","",TODAY()-C9) -> 1906-09-06 | E9: Citroen | F9: C5 | G9: Dynamique | I9: Berline | J9: Essence | K9: Mécanique | L9: 145874 | M9: Bleu | N9: 4990 | O9: 7990 | P9: 7940 | Q9: =O9-P9 -> 50 | R9: 900 | S9: 840 | T9: =(S9/1.2)-R9 -> -200 | U9: =((P9-N9)/1.2)-R9 -> 1558.333333 | V9: Beunard | X9: SVO | Y9: 2015-12-12 | Z9: 2016-02-17 | AA9: =Z9-Y9 -> 67 | AB9: Primo | AC9: 7940 | AD9: EGVO
Q10: 0 | T10: 0 | U10: 0 | V10: Briand | AA10: 0 | AB10: PP | AC10: 7500
Q11: 0 | T11: 0 | U11: 0 | V11: Joseph | AA11: 0 | AB11: 50/50 | AC11: 6990
Q12: 0 | T12: 0 | U12: 0 | V12: Leandre | AA12: 0 | AB12: Pro | AC12: 8000
Q13: 0 | T13: 0 | U13: 0 | AA13: 0
Q14: 0 | T14: 0 | U14: 0 | AA14: 0
Q15: 0 | T15: 0 | U15: 0 | AA15: 0
Q16: 0 | T16: 0 | U16: 0 | AA16: 0
Q17: 0 | T17: 0 | U17: 0 | AA17: 0
Q18: 0 | T18: 0 | U18: 0 | AA18: 0
Q19: 0 | T19: 0 | U19: 0 | AA19: 0
Q20: 0 | T20: 0 | U20: 0 | AA20: 0
Q21: 0 | T21: 0 | U21: 0 | AA21: 0
Q22: 0 | T22: 0 | U22: 0 | AA22: 0
Q23: 0 | T23: 0 | U23: 0 | AA23: 0
Q24: 0 | T24: 0 | U24: 0 | AA24: 0
Q25: 0 | T25: 0 | U25: 0 | AA25: 0
Q26: 0 | T26: 0 | U26: 0 | AA26: 0
Q27: 0 | T27: 0 | U27: 0 | AA27: 0
Q28: 0 | T28: 0 | U28: 0 | AA28: 0
Q29: 0 | T29: 0 | U29: 0 | AA29: 0
Q30: 0 | T30: 0 | U30: 0 | AA30: 0
Q31: 0 | T31: 0 | U31: 0 | AA31: 0
Q32: 0 | T32: 0 | U32: 0 | AA32: 0
Q33: 0 | T33: 0 | U33: 0 | AA33: 0
Q34: 0 | T34: 0 | U34: 0 | AA34: 0
Q35: 0 | T35: 0 | U35: 0 | AA35: 0
Q36: 0 | T36: 0 | U36: 0 | AA36: 0
Q37: 0 | T37: 0 | U37: 0 | AA37: 0
Q38: 0 | T38: 0 | U38: 0 | AA38: 0
Q39: 0 | T39: 0 | U39: 0 | AA39: 0
Q40: 0 | T40: 0 | U40: 0 | AA40: 0
Q41: 0 | T41: 0 | U41: 0 | AA41: 0
Q42: 0 | T42: 0 | U42: 0 | AA42: 0
Q43: 0 | T43: 0 | U43: 0 | AA43: 0
Q44: 0 | T44: 0 | U44: 0 | AA44: 0
Q45: 0 | T45: 0 | U45: 0 | AA45: 0
Q46: 0 | T46: 0 | U46: 0 | AA46: 0
Q47: 0 | T47: 0 | U47: 0 | AA47: 0
Q48: 0 | T48: 0 | U48: 0 | AA48: 0
Q49: 0 | T49: 0 | U49: 0 | AA49: 0
Q50: 0 | T50: 0 | U50: 0 | AA50: 0
Q51: 0 | T51: 0 | U51: 0 | AA51: 0
Q52: 0 | T52: 0 | U52: 0 | AA52: 0
Q53: 0 | T53: 0 | U53: 0 | AA53: 0
Q54: 0 | T54: 0 | U54: 0 | AA54: 0
Q55: 0 | T55: 0 | U55: 0 | AA55: 0
Q56: 0 | T56: 0 | U56: 0 | AA56: 0
Q57: 0 | T57: 0 | U57: 0 | AA57: 0
Q58: 0 | T58: 0 | U58: 0 | AA58: 0
Q59: 0 | T59: 0 | U59: 0 | AA59: 0
Q60: 0 | T60: 0 | U60: 0 | AA60: 0
Q61: 0 | T61: 0 | U61: 0 | AA61: 0
Q62: 0 | T62: 0 | U62: 0 | AA62: 0
Q63: 0 | T63: 0 | U63: 0 | AA63: 0
Q64: 0 | T64: 0 | U64: 0 | AA64: 0
Q65: 0 | T65: 0 | U65: 0 | AA65: 0
Q66: 0 | T66: 0 | U66: 0 | AA66: 0
Q67: 0 | T67: 0 | U67: 0 | AA67: 0
Q68: 0 | T68: 0 | U68: 0 | AA68: 0
Q69: 0 | T69: 0 | U69: 0 | AA69: 0
Q70: 0 | T70: 0 | U70: 0 | AA70: 0
Q71: 0 | T71: 0 | U71: 0 | AA71: 0
Q72: 0 | T72: 0 | U72: 0 | AA72: 0
D73: =IF(C73="","",TODAY()-C73) ->  | Q73: =O73-P73 -> 0 | T73: =(S73/1.2)-R73 -> 0 | U73: =((P73-N73)/1.2)-R73 -> 0 | AA73: =Z73-Y73 -> 0
Q74: 0 | T74: 0 | U74: 0 | AA74: 0
Q75: 0 | T75: 0 | U75: 0 | AA75: 0
Q76: 0 | T76: 0 | U76: 0 | AA76: 0
Q77: 0 | T77: 0 | U77: 0 | AA77: 0
Q78: 0 | T78: 0 | U78: 0 | AA78: 0
Q79: 0 | T79: 0 | U79: 0 | AA79: 0
Q80: 0 | T80: 0 | U80: 0 | AA80: 0
Q81: 0 | T81: 0 | U81: 0 | AA81: 0
Q82: 0 | T82: 0 | U82: 0 | AA82: 0
Q83: 0 | T83: 0 | U83: 0 | AA83: 0
Q84: 0 | T84: 0 | U84: 0 | AA84: 0
Q85: 0 | T85: 0 | U85: 0 | AA85: 0
Q86: 0 | T86: 0 | U86: 0 | AA86: 0
Q87: 0 | T87: 0 | U87: 0 | AA87: 0
Q88: 0 | T88: 0 | U88: 0 | AA88: 0
Q89: 0 | T89: 0 | U89: 0 | AA89: 0
Q90: 0 | T90: 0 | U90: 0 | AA90: 0
Q91: 0 | T91: 0 | U91: 0 | AA91: 0
Q92: 0 | T92: 0 | U92: 0 | AA92: 0
Q93: 0 | T93: 0 | U93: 0 | AA93: 0
Q94: 0 | T94: 0 | U94: 0 | AA94: 0
Q95: 0 | T95: 0 | U95: 0 | AA95: 0
Q96: 0 | T96: 0 | U96: 0 | AA96: 0
Q97: 0 | T97: 0 | U97: 0 | AA97: 0
Q98: 0 | T98: 0 | U98: 0 | AA98: 0
Q99: 0 | T99: 0 | U99: 0 | AA99: 0
Q100: 0 | T100: 0 | U100: 0 | AA100: 0
Q101: 0 | T101: 0 | U101: 0 | AA101: 0
Q102: 0 | T102: 0 | U102: 0 | AA102: 0
Q103: 0 | T103: 0 | U103: 0 | AA103: 0
Q104: 0 | T104: 0 | U104: 0 | AA104: 0
Q105: 0 | T105: 0 | U105: 0 | AA105: 0
Q106: 0 | T106: 0 | U106: 0 | AA106: 0
Q107: 0 | T107: 0 | U107: 0 | AA107: 0
Q108: 0 | T108: 0 | U108: 0 | AA108: 0
Q109: 0 | T109: 0 | U109: 0 | AA109: 0
Q110: 0 | T110: 0 | U110: 0 | AA110: 0
Q111: 0 | T111: 0 | U111: 0 | AA111: 0
Q112: 0 | T112: 0 | U112: 0 | AA112: 0
Q113: 0 | T113: 0 | U113: 0 | AA113: 0
Q114: 0 | T114: 0 | U114: 0 | AA114: 0
Q115: 0 | T115: 0 | U115: 0 | AA115: 0
Q116: 0 | T116: 0 | U116: 0 | AA116: 0
Q117: 0 | T117: 0 | U117: 0 | AA117: 0
Q118: 0 | T118: 0 | U118: 0 | AA118: 0
Q119: 0 | T119: 0 | U119: 0 | AA119: 0
Q120: 0 | T120: 0 | U120: 0 | AA120: 0
Q121: 0 | T121: 0 | U121: 0 | AA121: 0
Q122: 0 | T122: 0 | U122: 0 | AA122: 0
Q123: 0 | T123: 0 | U123: 0 | AA123: 0
Q124: 0 | T124: 0 | U124: 0 | AA124: 0
Q125: 0 | T125: 0 | U125: 0 | AA125: 0
Q126: 0 | T126: 0 | U126: 0 | AA126: 0
Q127: 0 | T127: 0 | U127: 0 | AA127: 0
Q128: 0 | T128: 0 | U128: 0 | AA128: 0
Q129: 0 | T129: 0 | U129: 0 | AA129: 0
Q130: 0 | T130: 0 | U130: 0 | AA130: 0
Q131: 0 | T131: 0 | U131: 0 | AA131: 0
Q132: 0 | T132: 0 | U132: 0 | AA132: 0
Q133: 0 | T133: 0 | U133: 0 | AA133: 0
Q134: 0 | T134: 0 | U134: 0 | AA134: 0
Q135: 0 | T135: 0 | U135: 0 | AA135: 0
Q136: 0 | T136: 0 | U136: 0 | AA136: 0
D137: =IF(C137="","",TODAY()-C137) ->  | Q137: =O137-P137 -> 0 | T137: =(S137/1.2)-R137 -> 0 | U137: =((P137-N137)/1.2)-R137 -> 0 | AA137: =Z137-Y137 -> 0
Q138: 0 | T138: 0 | U138: 0 | AA138: 0
Q139: 0 | T139: 0 | U139: 0 | AA139: 0
Q140: 0 | T140: 0 | U140: 0 | AA140: 0
Q141: 0 | T141: 0 | U141: 0 | AA141: 0
Q142: 0 | T142: 0 | U142: 0 | AA142: 0
Q143: 0 | T143: 0 | U143: 0 | AA143: 0
Q144: 0 | T144: 0 | U144: 0 | AA144: 0
Q145: 0 | T145: 0 | U145: 0 | AA145: 0
Q146: 0 | T146: 0 | U146: 0 | AA146: 0
Q147: 0 | T147: 0 | U147: 0 | AA147: 0
Q148: 0 | T148: 0 | U148: 0 | AA148: 0
Q149: 0 | T149: 0 | U149: 0 | AA149: 0
Q150: 0 | T150: 0 | U150: 0 | AA150: 0
Q151: 0 | T151: 0 | U151: 0 | AA151: 0
Q152: 0 | T152: 0 | U152: 0 | AA152: 0
Q153: 0 | T153: 0 | U153: 0 | AA153: 0
Q154: 0 | T154: 0 | U154: 0 | AA154: 0
Q155: 0 | T155: 0 | U155: 0 | AA155: 0
Q156: 0 | T156: 0 | U156: 0 | AA156: 0
Q157: 0 | T157: 0 | U157: 0 | AA157: 0
Q158: 0 | T158: 0 | U158: 0 | AA158: 0
Q159: 0 | T159: 0 | U159: 0 | AA159: 0
Q160: 0 | T160: 0 | U160: 0 | AA160: 0
Q161: 0 | T161: 0 | U161: 0 | AA161: 0
Q162: 0 | T162: 0 | U162: 0 | AA162: 0
Q163: 0 | T163: 0 | U163: 0 | AA163: 0
Q164: 0 | T164: 0 | U164: 0 | AA164: 0
Q165: 0 | T165: 0 | U165: 0 | AA165: 0
Q166: 0 | T166: 0 | U166: 0 | AA166: 0
Q167: 0 | T167: 0 | U167: 0 | AA167: 0
Q168: 0 | T168: 0 | U168: 0 | AA168: 0
Q169: 0 | T169: 0 | U169: 0 | AA169: 0
Q170: 0 | T170: 0 | U170: 0 | AA170: 0
Q171: 0 | T171: 0 | U171: 0 | AA171: 0
Q172: 0 | T172: 0 | U172: 0 | AA172: 0
Q173: 0 | T173: 0 | U173: 0 | AA173: 0
Q174: 0 | T174: 0 | U174: 0 | AA174: 0
Q175: 0 | T175: 0 | U175: 0 | AA175: 0
Q176: 0 | T176: 0 | U176: 0 | AA176: 0
Q177: 0 | T177: 0 | U177: 0 | AA177: 0
Q178: 0 | T178: 0 | U178: 0 | AA178: 0
Q179: 0 | T179: 0 | U179: 0 | AA179: 0
Q180: 0 | T180: 0 | U180: 0 | AA180: 0
Q181: 0 | T181: 0 | U181: 0 | AA181: 0
Q182: 0 | T182: 0 | U182: 0 | AA182: 0
Q183: 0 | T183: 0 | U183: 0 | AA183: 0
Q184: 0 | T184: 0 | U184: 0 | AA184: 0
Q185: 0 | T185: 0 | U185: 0 | AA185: 0
Q186: 0 | T186: 0 | U186: 0 | AA186: 0
Q187: 0 | T187: 0 | U187: 0 | AA187: 0
Q188: 0 | T188: 0 | U188: 0 | AA188: 0
Q189: 0 | T189: 0 | U189: 0 | AA189: 0
Q190: 0 | T190: 0 | U190: 0 | AA190: 0
Q191: 0 | T191: 0 | U191: 0 | AA191: 0
Q192: 0 | T192: 0 | U192: 0 | AA192: 0
Q193: 0 | T193: 0 | U193: 0 | AA193: 0
Q194: 0 | T194: 0 | U194: 0 | AA194: 0
Q195: 0 | T195: 0 | U195: 0 | AA195: 0
Q196: 0 | T196: 0 | U196: 0 | AA196: 0
Q197: 0 | T197: 0 | U197: 0 | AA197: 0
Q198: 0 | T198: 0 | U198: 0 | AA198: 0
Q199: 0 | T199: 0 | U199: 0 | AA199: 0
Q200: 0 | T200: 0 | U200: 0 | AA200: 0
D201: =IF(C201="","",TODAY()-C201) ->  | Q201: =O201-P201 -> 0 | T201: =(S201/1.2)-R201 -> 0 | U201: =((P201-N201)/1.2)-R201 -> 0 | AA201: =Z201-Y201 -> 0
Q202: 0 | T202: 0 | U202: 0 | AA202: 0
Q203: 0 | T203: 0 | U203: 0 | AA203: 0
... 200 more rows

Sheet Analyse Vendeurs
C1: ANALYSE DES RESULTATS VO PAR VENDEURS
C5: Vendeurs | D5: Nombre de VOP vendues | E5: Nombre de reprise client | F5: Delta moyen entre FRE estimé et les FRE réels | G5: Remise moyenne | H5: Durée moyenne des reprises en stock | I5: Nombre de Financement | J5: % de Financement | K5: Montant Financé | L5: Dossier Moyen | M5: Montant à la VO
C6: Léandre | D6: ='Calcul tableau dynamique'!F8 -> 1 | E6: =COUNTIF('Détails ventes'!W8:W403,"leandre") -> 0 | F6: =GETPIVOTDATA("DIFFERENCE FRAIS",'Calcul tableau dynamique'!$A$3,"REPRENEUR","Leandre") ->  | G6: =GETPIVOTDATA("REMISE",'Calcul tableau dynamique'!$A$14,"VENDEUR","Leandre") -> 0 | H6: =GETPIVOTDATA("Nombre de jours de stock",'Calcul tableau dynamique'!$H$3,"REPRENEUR","Leandre") ->  | I6: =GETPIVOTDATA("Financement",'Calcul tableau dynamique'!$A$24,"VENDEUR","Leandre") -> 1 | J6: =I6/D6 -> 1 | K6: =GETPIVOTDATA("Montant Financé",'Calcul tableau dynamique'!$A$34,"VENDEUR","Leandre") -> 8000 | L6: =K6/I6 -> 8000 | M6: =K6/D6 -> 8000
C7: Joseph | D7: ='Calcul tableau dynamique'!F7 -> 1 | E7: =COUNTIF('Détails ventes'!W8:W403,"joseph") -> 1 | F7: =GETPIVOTDATA("DIFFERENCE FRAIS",'Calcul tableau dynamique'!$A$3,"REPRENEUR","Joseph") ->  | G7: =GETPIVOTDATA("REMISE",'Calcul tableau dynamique'!$A$14,"VENDEUR","Joseph") -> 0 | H7: =GETPIVOTDATA("Nombre de jours de stock",'Calcul tableau dynamique'!$H$3,"REPRENEUR","Joseph") -> 48 | I7: =GETPIVOTDATA("Financement",'Calcul tableau dynamique'!$A$24,"VENDEUR","Joseph") -> 1 | J7: 1 | K7: =GETPIVOTDATA("Montant Financé",'Calcul tableau dynamique'!$A$34,"VENDEUR","Joseph") -> 6990 | L7: =K7/I7 -> 6990 | M7: 6990
C8: Guillaume | D8: ='Calcul tableau dynamique'!F6 -> 1 | E8: =COUNTIF('Détails ventes'!W8:W403,"guillaume") -> 0 | F8: =GETPIVOTDATA("DIFFERENCE FRAIS",'Calcul tableau dynamique'!$A$3,"REPRENEUR","Guillaume") ->  | G8: =GETPIVOTDATA("REMISE",'Calcul tableau dynamique'!$A$14,"VENDEUR","Guillaume") -> 500 | H8: =GETPIVOTDATA("Nombre de jours de stock",'Calcul tableau dynamique'!$H$3,"REPRENEUR","Guillaume") ->  | I8: =GETPIVOTDATA("Financement",'Calcul tableau dynamique'!$A$24,"VENDEUR","Guillaume") -> 1 | J8: 1 | K8: =GETPIVOTDATA("Montant Financé",'Calcul tableau dynamique'!$A$34,"VENDEUR","Guillaume") -> 3500 | L8: 3500 | M8: 3500
C9: P.BEUNARD | D9: ='Calcul tableau dynamique'!F4 -> 1 | E9: =COUNTIF('Détails ventes'!W8:W403,"beunard") -> 0 | F9: =GETPIVOTDATA("DIFFERENCE FRAIS",'Calcul tableau dynamique'!$A$3,"REPRENEUR","Beunard") ->  | G9: =GETPIVOTDATA("REMISE",'Calcul tableau dynamique'!$A$14,"VENDEUR","Beunard") -> 50 | H9: =GETPIVOTDATA("Nombre de jours de stock",'Calcul tableau dynamique'!$H$3,"REPRENEUR","Beunard") ->  | I9: =GETPIVOTDATA("Financement",'Calcul tableau dynamique'!$A$24,"VENDEUR","Beunard") -> 1 | J9: 1 | K9: =GETPIVOTDATA("Montant Financé",'Calcul tableau dynamique'!$A$34,"VENDEUR","Beunard") -> 7940 | L9: 7940 | M9: 7940
C10: P.BRIAND | D10: ='Calcul tableau dynamique'!F5 -> 1 | E10: =COUNTIF('Détails ventes'!W8:W403,"briand") -> 0 | F10: =GETPIVOTDATA("DIFFERENCE FRAIS",'Calcul tableau dynamique'!$A$3,"REPRENEUR","Briand") ->  | G10: =GETPIVOTDATA("REMISE",'Calcul tableau dynamique'!$A$14,"VENDEUR","Briand") -> 0 | H10: =GETPIVOTDATA("Nombre de jours de stock",'Calcul tableau dynamique'!$H$3,"REPRENEUR","Briand") ->  | I10: =GETPIVOTDATA("Financement",'Calcul tableau dynamique'!$A$24,"VENDEUR","Briand") -> 1 | J10: 1 | K10: =GETPIVOTDATA("Montant Financé",'Calcul tableau dynamique'!$A$34,"VENDEUR","Briand") -> 7500 | L10: 7500 | M10: 7500
C11: TOTAL | D11: =D6+D7+D8+D9+D10 -> 5 | F11: =(F6+F7+F8+F9+F10)/D11 ->  | G11: =(G6+G7+G8+G9+G10)/D11 -> 110 | I11: =SUM(I6:I10) -> 5 | J11: 1 | K11: =SUM(K6:K10) -> 33930 | L11: =K11/I11 -> 6786 | M11: 6786
B18: PREMIUM | D18: PRIMO | F18: Peugeot Perspectives | H18: VAC Ballon | J18: Pack Garantie ODL | L18: VO PRO | N18: TOTAL
B19: Nombre | C19: % | D19: Nombre | E19: % | F19: Nombre | G19: % | H19: Nombre | I19: % | J19: Nombre | K19: % | L19: Nombre | M19: % | N19: NOMBRE | O19: %
A20: Léandre | C20: =B20/N20 ->  | E20: =D20/N20 ->  | G20: =F20/N20 ->  | I20: =H20/N20 ->  | K20: =J20/N20 ->  | M20: =L20/N20 ->  | N20: =B20+D20+F20+H20 -> 0 | O20: =N20/N25 -> 
A21: Joseph | C21: =B21/N21 ->  | E21: =D21/N21 ->  | G21: =F21/N21 ->  | I21: =H21/N21 ->  | K21: =J21/N21 ->  | M21: =L21/N21 ->  | N21: =B21+D21+F21+H21 -> 0 | O21: =N21/N25 -> 
A22: Guillaume | C22: =B22/N22 ->  | E22: =D22/N22 ->  | G22: =F22/N22 ->  | I22: =H22/N22 ->  | N22: =B22+D22+F22+H22 -> 0 | O22: =N22/N25 -> 
A23: P.BEUNARD | C23: =B23/N23 ->  | E23: =D23/N23 ->  | G23: =F23/N23 ->  | I23: =H23/N23 ->  | N23: =B23+D23+F23+H23 -> 0 | O23: =N23/N25 -> 
A24: P.BRIAND | C24: =B24/N24 ->  | E24: =D24/N24 ->  | G24: =F24/N24 ->  | I24: =H24/N24 ->  | N24: =B24+D24+F24+H24 -> 0 | O24: =N24/N25 -> 
A25: TOTAL | B25: =SUM(B20:B24) -> 0 | C25: =B25/N25 ->  | D25: =SUM(D20:D24) -> 0 | E25: =D25/N25 ->  | F25: =SUM(F20:F24) -> 0 | G25: =F25/N25 ->  | H25: =SUM(H20:H24) -> 0 | I25: =H25/N25 ->  | N25: =SUM(N20:N24) -> 0

Sheet Analyse Parc VO
B1: ANALYSE VENTE VO PARTICULIER
G4: TOTAL VOP
B5: ANALYSE DES MARQUES VENDUES | H5: ORIGINE
B6: FRANCAISE | C6: =E6+E7+E8+E9 -> 2 | D6: Peugeot | E6: =COUNTIF('Détails ventes'!E8:E403,"peugeot") -> 1 | F6: =E6/G6 -> 0.5 | G6: =SUM(E6:E21) -> 2 | H6: =I6/G6 -> 0.5 | I6: =COUNTIF('Détails ventes'!X8:X403,"svo") -> 1 | J6: SVO
D7: Citroen | E7: =COUNTIF('Détails ventes'!E8:E403,"citroen") -> 1 | F7: =E7/G6 -> 0.5 | H7: =I7/G6 -> 0.5 | I7: =COUNTIF('Détails ventes'!X8:X403,"reprise") -> 1 | J7: REPRISE
C8: =C6/G6 -> 1 | D8: Renault | E8: =COUNTIF('Détails ventes'!E8:E403,"renault") -> 0 | F8: =E8/G6 -> 0 | H8: =I8/G6 -> 0 | I8: =COUNTIF('Détails ventes'!X8:X403,"gvo") -> 0 | J8: GVO
D9: Dacia | E9: =COUNTIF('Détails ventes'!E8:E403,"dacia") -> 0 | F9: =E9/G6 -> 0 | H9: =I9/G6 -> 0 | I9: =COUNTIF('Détails ventes'!X8:X403,"gemy") -> 0 | J9: Concession GEMY
B10: EUROPEENNE | C10: =SUM(E10:E16) -> 0 | D10: Ford | E10: =COUNTIF('Détails ventes'!E8:E403,"ford") -> 0 | F10: =E10/G6 -> 0 | H10: =I10/G6 -> 0 | I10: =COUNTIF('Détails ventes'!X8:X403,"bb") -> 0 | J10: Buy-back CREDIPAR
D11: Volkswagen | E11: =COUNTIF('Détails ventes'!E8:E403,"volkswagen") -> 0 | F11: =E11/G6 -> 0
D12: Mercedes | E12: =COUNTIF('Détails ventes'!E8:E403,"mercedes") -> 0 | F12: =E12/G6 -> 0 | H12: ENERGIE
C13: =C10/G6 -> 0 | D13: Audi | E13: =COUNTIF('Détails ventes'!E8:E403,"audi") -> 0 | F13: =E13/G6 -> 0 | H13: =I13/G6 -> 0.5 | I13: =COUNTIF('Détails ventes'!J8:J403,"diesel") -> 1 | J13: Diesel
D14: BMW | E14: =COUNTIF('Détails ventes'!E8:E403,"bmw") -> 0 | F14: =E14/G6 -> 0 | H14: =I14/G6 -> 0.5 | I14: =COUNTIF('Détails ventes'!J8:J403,"essence") -> 1 | J14: Essence
D15: Fiat | E15: =COUNTIF('Détails ventes'!E8:E403,"fiat") -> 0 | F15: =E15/G6 -> 0 | H15: =I15/G6 -> 0 | I15: =COUNTIF('Détails ventes'!J8:J403,"Hybride") -> 0 | J15: Hybride
D16: Opel | E16: =COUNTIF('Détails ventes'!E8:E403,"opel") -> 0 | F16: =E16/G6 -> 0 | H16: =I16/G6 -> 0 | I16: =COUNTIF('Détails ventes'!J8:J403,"electrique") -> 0 | J16: Electrique
B17: ASIATIQUE | C17: =SUM(E17:E20) -> 0 | D17: Toyota | E17: =COUNTIF('Détails ventes'!E8:E403,"toyota") -> 0 | F17: =E17/G6 -> 0
D18: Kia | E18: =COUNTIF('Détails ventes'!E8:E403,"kia") -> 0 | F18: =E18/G6 -> 0 | H18: BOITE
C19: =C17/G6 -> 0 | D19: Hyundai | E19: =COUNTIF('Détails ventes'!E8:E403,"hyundai") -> 0 | F19: =E19/G6 -> 0 | H19: =I19/G6 -> 0 | I19: =COUNTIF('Détails ventes'!K8:K403,"mecanique") -> 0 | J19: Mécanique
D20: Nissan | E20: =COUNTIF('Détails ventes'!E8:E403,"nissan") -> 0 | F20: =E20/G6 -> 0 | H20: =I20/G6 -> 0.5 | I20: =COUNTIF('Détails ventes'!K8:K403,"automatique") -> 1 | J20: Automatique
C21: =F21 -> 0 | D21: Autres | E21: =COUNTIF('Détails ventes'!E8:E403,"autres") -> 0 | F21: =E21/G6 -> 0 | H21: =I21/G6 -> 0 | I21: =COUNTIF('Détails ventes'!K8:K403,"pilotée") -> 0 | J21: Pilotée

Sheet Calcul tableau dynamique
A2: DELTA FRAIS | E2: VENTE VOP | H2: DUREE MOYENNE DE DETENTION EN STOCK
A3: VENDEURS | B3: MBA | E3: VENDEURS | F3: Ventes | H3: Étiquettes de lignes | I3: Moyenne de Nombre de jours de stock
A4: Joseph | B4: 624.6666667 | E4: Beunard | F4: =COUNTIF('Détails ventes'!V8:V403,"beunard") -> 1 | H4: Joseph | I4: 48
A5: (vide) | B5: 1558.333333 | E5: Briand | F5: =COUNTIF('Détails ventes'!V8:V403,"briand") -> 1 | H5: (vide) | I5: 0.1696202532
A6: Total général | B6: 2183 | E6: Guillaume | F6: =COUNTIF('Détails ventes'!V8:V403,"guillaume") -> 1 | H6: Total général | I6: 0.2904040404
E7: Joseph | F7: =COUNTIF('Détails ventes'!V8:V403,"joseph") -> 1
E8: Leandre | F8: =COUNTIF('Détails ventes'!V8:V403,"leandre") -> 1
E9: (vide)
E10: Total général
A13: REMISE MOYENNE
A14: Étiquettes de lignes | B14: Moyenne de REMISE | F14: NOMBRE
A15: Beunard | B15: 50 | E15: AXESS | F15: =COUNTIF('Détails ventes'!AB8:AB403,"axess") -> 0
A16: Briand | B16: 0 | E16: PP | F16: =COUNTIF('Détails ventes'!AB8:AB403,"pp") -> 1
A17: Guillaume | B17: 500 | E17: VAC | F17: =COUNTIF('Détails ventes'!AB8:AB403,"VAC") -> 0
A18: Joseph | B18: 0 | E18: VAC BALLON | F18: =COUNTIF('Détails ventes'!AB8:AB403,"ballon") -> 0
A19: Leandre | B19: 0
A20: (vide) | B20: 0 | E20: VENTILATION VENTE FINANCEMENT
A21: Total général | B21: 1.388888889 | F21: Étiquettes de colonnes
E22: Étiquettes de lignes | F22: PP | G22: Premium | H22: Primo | I22: 50/50 | J22: Pro | K22: Total général
A23: Nombre de Financement | E23: Beunard
A24: Étiquettes de lignes | B24: Nombre de Financement | E24: Briand
A25: Beunard | B25: 1 | E25: Guillaume
A26: Briand | B26: 1 | E26: Joseph
A27: Guillaume | B27: 1 | E27: Leandre
A28: Joseph | B28: 1 | E28: Total général
A29: Leandre | B29: 1
A30: (vide)
A31: Total général | B31: 5
A33: Montant Financé
A34: Étiquettes de lignes | B34: Somme de Montant Financé
A35: Beunard | B35: 7940
A36: Briand | B36: 7500
A37: Guillaume | B37: 3500
A38: Joseph | B38: 6990
A39: Leandre | B39: 8000
A40: (vide)
A41: Total général | B41: 33930
